bitfinex/quotes_SOLUSD_20250420
["timestamp","ask_amount","ask_price","bid_price","bid_amount"]
[1745187515021,26.67230521,136.61,136.6,14.59]
[1745187516739,33.99241354,136.61,136.6,14.59]
[1745187517041,26.67230521,136.61,136.6,14.59]
[1745187517441,33.99241354,136.61,136.6,14.59]
[1745187519941,26.67230521,136.61,136.6,14.59]
[1745187523142,70.54230521,136.61,136.6,14.59]
[1745187525241,26.0,136.62,136.6,14.59]
[1745187525451,34.02265635,136.62,136.6,14.59]
[1745187528957,8.02265635,136.61,136.6,14.59]
[1745187533253,26.67230521,136.61,136.6,14.59]
[1745187535569,33.99241354,136.61,136.6,14.59]
[1745187537763,26.67230521,136.61,136.6,14.59]
[1745187539067,33.99241354,136.61,136.6,14.59]
[1745187540061,26.67230521,136.61,136.6,14.59]
[1745187541472,18.64964886,136.61,136.6,14.59]
[1745187541843,26.67230521,136.61,136.6,14.59]
[1745187542046,18.64964886,136.61,136.6,14.59]
[1745187542368,26.67230521,136.61,136.6,14.59]
[1745187543365,70.54230521,136.61,136.6,14.59]
[1745187543562,26.67230521,136.61,136.6,14.59]
[1745187547675,33.99241354,136.61,136.6,14.59]
[1745187549368,26.67230521,136.61,136.6,14.59]
[1745187551570,33.99241354,136.61,136.6,14.59]
[1745187552978,33.99241354,136.61,136.6,0.03]
[1745187553782,77.86241354,136.61,136.6,0.03]
[1745187559071,26.0,136.58,136.57,0.03]
[1745187559274,34.02265635,136.58,136.57,0.03]
[1745187560292,41.34437256,136.58,136.57,0.03]
[1745187562778,34.02265635,136.58,136.57,0.03]
[1745187563788,77.89265635,136.58,136.57,0.03]
[1745187568374,26.0,136.59,136.57,8.05265635]
[1745187568679,59.21189013,136.63,136.58,8.02265635]
[1745187568879,43.87,136.63,136.58,8.02265635]
[1745187569081,26.0,136.6,136.58,8.02265635]
[1745187571801,18.64964886,136.65,136.59,8.02265635]
[1745187571999,18.64964886,136.65,136.61,8.02265635]
[1745187572180,26.0,136.63,136.62,8.02265635]
[1745187573001,26.0,136.63,136.61,15.68025635]
[1745187573295,15.33924385,136.68,136.62,8.02265635]
[1745187573502,18.64964886,136.67,136.62,8.02265635]
[1745187573672,26.0,136.66,136.62,8.02265635]
[1745187573993,8.02265635,136.66,136.61,15.68025635]
[1745187574197,34.02265635,136.66,136.61,15.68025635]
[1745187581112,34.02265635,136.66,136.61,7.6576]
[1745187582109,8.02265635,136.65,136.61,7.6576]
[1745187584908,8.02265635,136.64,136.61,7.6576]
[1745187585090,8.02265635,136.64,136.6,14.56]
[1745187585091,8.02265635,136.63,136.6,14.56]
[1745187585290,8.02265635,136.64,136.6,14.56]
[1745187594622,8.02265635,136.62,136.6,14.56]
[1745187595127,8.02265635,136.63,136.6,14.56]
[1745187595725,8.02265635,136.62,136.6,14.56]
[1745187599524,18.64964886,136.65,136.6,14.56]
[1745187599706,8.02265635,136.64,136.6,14.56]
[1745187600221,26.0,136.66,136.6,94.945]
[1745187600424,8.02265635,136.63,136.6,94.945]
[1745187600737,8.02265635,136.64,136.6,94.945]
[1745187600901,8.02265635,136.63,136.6,94.945]
[1745187601632,8.02265635,136.63,136.6,14.56]
[1745187601932,8.02265635,136.64,136.6,14.56]
[1745187603640,8.02265635,136.63,136.6,14.56]
[1745187607035,8.02265635,136.64,136.6,14.56]
[1745187607540,26.0,136.66,136.6,22.58265635]
[1745187607716,34.02265635,136.66,136.6,22.58265635]
[1745187608038,8.02265635,136.65,136.6,22.58265635]
[1745187609539,8.02265635,136.64,136.6,14.56]
[1745187610130,8.02265635,136.63,136.6,14.56]
[1745187610442,8.02265635,136.62,136.6,14.56]
[1745187613743,8.02265635,136.61,136.6,14.56]
[1745187623336,26.0,136.61,136.6,14.56]
[1745187623533,26.0,136.62,136.6,14.56]
[1745187627852,34.02265635,136.62,136.6,14.56]
[1745187628156,8.02265635,136.61,136.6,14.56]
[1745187629067,34.02265635,136.62,136.6,14.56]
[1745187637772,0.063,136.67,136.61,8.02265635]
[1745187638072,26.0,136.66,136.61,8.02265635]
[1745187638476,26.0,136.66,136.6,22.58265635]
[1745187638675,34.02265635,136.66,136.61,8.02265635]
[1745187640075,34.02265635,136.66,136.6,22.58265635]
[1745187640474,8.02265635,136.65,136.6,22.58265635]
[1745187641795,8.02265635,136.64,136.6,14.56]
[1745187641964,8.02265635,136.61,136.6,14.56]
[1745187646095,8.02265635,136.62,136.6,14.56]
[1745187646401,8.02265635,136.63,136.6,14.56]
[1745187647399,8.02265635,136.62,136.6,14.56]
[1745187648893,8.02265635,136.61,136.6,14.56]
[1745187649887,26.67230521,136.61,136.6,14.56]
[1745187650085,52.67230521,136.61,136.6,14.56]
[1745187650290,44.64964886,136.58,136.57,14.57]
[1745187650606,52.67230521,136.58,136.57,14.57]
[1745187652591,59.99402142,136.58,136.57,14.57]
[1745187653092,59.99402142,136.58,136.57,0.03]
[1745187653308,18.64964886,136.57,136.55,14.59]
[1745187653506,44.64964886,136.53,136.52,0.03]
[1745187653721,44.64964886,136.53,136.5,14.56]
[1745187653722,52.67230521,136.53,136.5,14.56]
[1745187653889,26.67230521,136.51,136.5,14.56]
[1745187654198,18.64964886,136.51,136.5,14.56]
[1745187654397,26.67230521,136.51,136.5,14.56]
[1745187656290,59.99777587,136.51,136.5,14.56]
[1745187656486,33.99777587,136.51,136.5,14.56]
[1745187657600,26.0,136.48,136.47,250.85]
[1745187657799,52.67230521,136.48,136.47,250.85]
[1745187658720,59.9993861,136.48,136.47,250.85]
[1745187658890,92.0900115,136.48,136.47,0.03]
[1745187659287,44.64964886,136.45,136.44,0.03]
[1745187659513,52.67230521,136.45,136.44,0.03]
[1745187660408,26.0,136.45,136.44,0.03]
[1745187660597,8.02265635,136.45,136.44,0.03]
[1745187663119,34.02265635,136.45,136.44,0.03]
[1745187664314,52.67230521,136.45,136.44,0.03]
[1745187668695,60.00099703,136.45,136.44,0.03]
[1745187668898,34.00099703,136.45,136.44,0.03]
[1745187670297,26.67230521,136.45,136.44,0.03]
[1745187670518,52.67230521,136.45,136.44,0.03]
[1745187671108,34.02265635,136.45,136.44,0.03]
[1745187671420,8.02265635,136.45,136.44,0.03]
[1745187671621,70.54230521,136.45,136.44,0.03]
[1745187671796,52.67230521,136.45,136.44,0.03]
[1745187672412,34.02265635,136.45,136.44,0.03]
[1745187672621,26.0,136.45,136.44,0.03]
[1745187673911,34.02265635,136.45,136.44,0.03]
[1745187674301,26.0,136.45,136.44,0.03]
[1745187674630,52.67230521,136.45,136.44,0.03]
[1745187675417,44.64964886,136.45,136.44,0.03]
[1745187675715,52.67230521,136.45,136.44,0.03]
[1745187677411,26.67230521,136.45,136.44,0.03]
[1745187678429,52.67230521,136.45,136.44,0.03]
[1745187678728,34.00099703,136.45,136.44,0.03]
[1745187679327,18.64964886,136.43,136.42,14.56]
[1745187679500,26.67230521,136.43,136.42,14.56]
[1745187679695,44.64964886,136.42,136.38,265.89]
[1745187679913,8.02265635,136.39,136.38,265.89]
[1745187680523,52.67230521,136.39,136.38,14.95]
[1745187681529,34.02265635,136.39,136.38,14.95]
[1745187683900,8.02265635,136.4,136.38,14.95]
[1745187684504,26.0,136.41,136.38,14.95]
[1745187684832,8.02265635,136.39,136.38,14.95]
[1745187687338,34.02265635,136.39,136.38,14.95]
[1745187695947,52.0218,136.45,136.38,14.95]
[1745187696259,8.02265635,136.4,136.38,14.95]
[1745187697744,33.329815,136.43,136.38,14.95]
[1745187697745,8.02265635,136.39,136.38,14.95]
[1745187699343,8.02265635,136.4,136.38,14.95]
[1745187700642,8.02265635,136.41,136.38,14.95]
[1745187701252,18.64964886,136.46,136.4,8.02265635]
[1745187701452,80.863,136.5,136.43,8.02265635]
[1745187701453,7.38921497,136.5,136.43,8.02265635]
[1745187701752,8.02265635,136.48,136.44,14.84]
[1745187701928,44.64964886,136.49,136.44,14.84]
[1745187702361,8.02265635,136.48,136.44,14.84]
[1745187704744,44.64964886,136.49,136.44,14.84]
[1745187704745,8.02265635,136.47,136.44,14.84]
[1745187704945,8.02265635,136.46,136.44,14.84]
[1745187705446,52.67230521,136.49,136.44,22.86265635]
[1745187706247,34.02265635,136.49,136.44,22.86265635]
[1745187706423,26.0,136.49,136.45,8.02265635]
[1745187706737,26.0,136.49,136.44,14.84]
[1745187706738,34.02265635,136.49,136.44,22.86265635]
[1745187706939,8.02265635,136.48,136.44,14.84]
[1745187707148,8.02265635,136.47,136.44,14.84]
[1745187707959,8.02265635,136.47,136.45,14.82]
[1745187711858,18.64964886,136.48,136.45,14.82]
[1745187712031,8.02265635,136.47,136.45,14.82]
[1745187712232,18.64964886,136.48,136.45,14.82]
[1745187712555,8.02265635,136.47,136.45,14.82]
[1745187713250,8.02265635,136.46,136.45,14.82]
[1745187714842,8.02265635,136.47,136.45,14.82]
[1745187716236,8.02265635,136.46,136.45,14.82]
[1745187716436,8.02265635,136.47,136.45,14.82]
[1745187717154,8.02265635,136.46,136.45,14.82]
[1745187717345,52.67230521,136.46,136.45,14.82]
[1745187720462,26.0,136.46,136.45,14.82]
[1745187720672,34.02265635,136.46,136.45,14.82]
[1745187722166,8.02265635,136.47,136.45,14.82]
[1745187722350,52.67230521,136.48,136.45,14.82]
[1745187723644,8.02265635,136.47,136.45,14.82]
[1745187727048,8.02265635,136.46,136.45,14.82]
[1745187727273,26.67230521,136.46,136.45,14.82]
[1745187727465,60.00045998,136.46,136.45,14.82]
[1745187728172,52.67230521,136.46,136.45,14.82]
[1745187730673,60.00045998,136.46,136.45,14.82]
[1745187731365,79.47435998,136.46,136.45,14.82]
[1745187732402,18.64964886,136.42,136.4,265.9]
[1745187732680,26.67230521,136.41,136.4,265.9]
[1745187732885,52.67230521,136.41,136.4,265.9]
[1745187733185,44.64964886,136.39,136.38,0.03]
[1745187733365,96.54230521,136.39,136.38,0.03]
[1745187733986,18.64964886,136.38,136.37,2.4693063]
[1745187734153,44.64964886,136.35,136.32,0.03]
[1745187734356,26.0,136.35,136.34,14.87043086]
[1745187734552,8.02265635,136.36,136.34,14.87043086]
[1745187735189,18.64964886,136.35,136.34,14.87043086]
[1745187735376,26.0,136.36,136.34,14.87043086]
[1745187735882,34.02265635,136.39,136.34,22.89308721]
[1745187736063,8.02265635,136.41,136.36,8.02265635]
[1745187736475,8.02265635,136.4,136.35,9.66075635]
[1745187736871,34.02265635,136.41,136.35,9.66075635]
[1745187737073,34.02265635,136.41,136.36,8.02265635]
[1745187737288,38.59402492,136.41,136.36,12.59402492]
[1745187738878,38.59402492,136.41,136.35,1.6381]
[1745187739075,38.59402492,136.41,136.35,14.23212492]
[1745187739276,12.59402492,136.39,136.35,1.6381]
[1745187739866,31.24367378,136.4,136.35,14.23212492]
[1745187740564,12.59402492,136.39,136.35,1.6381]
[1745187742188,12.59402492,136.36,136.34,14.8]
[1745187743393,38.57513751,136.4,136.34,14.8]
[1745187743585,12.59402492,136.36,136.34,14.8]
[1745187743883,26.0,136.37,136.34,14.8]
[1745187744485,12.59402492,136.36,136.34,14.8]
[1745187744691,38.59402492,136.37,136.34,14.8]
[1745187744865,26.0,136.37,136.34,14.8]
[1745187745862,18.64964886,136.4,136.34,27.39402492]
[1745187746082,12.59402492,136.39,136.34,27.39402492]
[1745187746284,12.59402492,136.38,136.34,14.8]
[1745187747470,18.64964886,136.4,136.34,27.39402492]
[1745187747784,18.64964886,136.42,136.35,12.59402492]
[1745187747978,26.0,136.41,136.35,12.59402492]
[1745187748166,12.59402492,136.4,136.35,12.59402492]
[1745187748362,12.59402492,136.4,136.34,95.185]
[1745187748563,12.59402492,136.4,136.35,12.59402492]
[1745187749190,26.0,136.41,136.35,12.59402492]
[1745187749485,26.0,136.41,136.38,12.59402492]
[1745187749672,26.0,136.41,136.39,14.8]
[1745187750171,12.59402492,136.42,136.39,14.8]
[1745187754184,44.64964886,136.43,136.39,14.8]
[1745187754378,12.59402492,136.42,136.39,14.8]
[1745187759382,8.05836452,136.42,136.39,14.8]
[1745187761308,8.05836452,136.41,136.39,14.8]
[1745187763188,8.05836452,136.4,136.39,14.8]
[1745187763893,8.05836452,136.41,136.39,14.8]
[1745187766727,44.64964886,136.43,136.39,14.8]
[1745187766897,8.05836452,136.42,136.39,14.8]
[1745187768391,8.05836452,136.41,136.39,14.8]
[1745187769320,8.05836452,136.42,136.39,14.8]
[1745187769500,44.64964886,136.43,136.39,14.8]
[1745187769699,8.05836452,136.42,136.4,14.82]
[1745187775023,8.05836452,136.41,136.4,14.82]
[1745187775526,8.05836452,136.42,136.4,14.82]
[1745187779229,8.05836452,136.42,136.41,14.82]
[1745187780735,44.64964886,136.43,136.41,14.82]
[1745187780920,26.0,136.43,136.41,14.82]
[1745187781121,34.05836452,136.43,136.41,14.82]
[1745187784834,26.0,136.43,136.41,14.82]
[1745187785326,34.05836452,136.43,136.41,14.82]
[1745187786117,8.05836452,136.42,136.41,14.82]
[1745187789238,15.38866799,136.42,136.41,14.82]
[1745187791238,77.97831685,136.42,136.41,14.82]
[1745187791433,44.64964886,136.39,136.38,14.76]
[1745187791612,52.70801338,136.39,136.38,14.76]
[1745187791820,96.64801338,136.39,136.38,14.76]
[1745187792017,96.64801338,136.39,136.36,265.96]
[1745187792319,26.70801338,136.37,136.36,265.96]
[1745187792519,34.0410045,136.37,136.36,265.96]
[1745187795726,34.0410045,136.37,136.36,14.76]
[1745187795727,77.9810045,136.37,136.36,14.76]
[1745187796238,34.0410045,136.37,136.36,14.76]
[1745187796647,26.0,136.34,136.33,14.76]
[1745187796840,34.05836452,136.34,136.33,14.76]
[1745187798344,60.04261804,136.34,136.33,14.76]
[1745187798547,60.04261804,136.34,136.31,0.03]
[1745187798548,18.64964886,136.33,136.31,0.03]
[1745187798740,92.27715221,136.32,136.31,0.03]
[1745187798944,52.70801338,136.32,136.31,0.03]
[1745187799146,60.04369413,136.32,136.31,0.03]
[1745187799949,92.27715221,136.32,136.31,0.03]
[1745187801748,98.93605221,136.32,136.31,0.03]
[1745187803032,92.27715221,136.32,136.31,0.03]
[1745187804142,84.94147146,136.32,136.31,0.03]
[1745187804344,52.70801338,136.32,136.31,0.03]
[1745187804943,60.04369413,136.32,136.31,0.03]
[1745187805854,52.70801338,136.32,136.31,0.03]
[1745187807060,60.04369413,136.32,136.31,0.03]
[1745187807247,92.27715221,136.32,136.31,0.03]
[1745187807545,60.04369413,136.32,136.31,0.03]
[1745187808064,66.27715221,136.32,136.31,0.03]
[1745187808231,51.98586777,136.31,136.3,0.03]
[1745187808432,60.04423229,136.31,136.3,0.03]
[1745187809344,44.64964886,136.29,136.25,0.03]
[1745187809641,26.0,136.29,136.25,0.03]
[1745187809848,34.05836452,136.27,136.25,0.03]
[1745187810253,8.05836452,136.26,136.25,0.03]
[1745187810458,26.0,136.23,136.2,14.76]
[1745187810840,34.05836452,136.23,136.2,14.76]
[1745187811242,8.05836452,136.21,136.2,14.76]
[1745187811759,8.05836452,136.22,136.2,14.76]
[1745187812061,34.05836452,136.23,136.2,14.76]
[1745187812263,8.05836452,136.21,136.2,14.76]
[1745187814458,33.34058603,136.23,136.2,14.76]
[1745187815358,25.99075622,136.22,136.2,14.76]
[1745187815563,18.64964886,136.22,136.2,14.76]
[1745187815944,25.99082528,136.22,136.2,14.76]
[1745187816167,26.0,136.21,136.2,14.76]
[1745187817171,8.05836452,136.22,136.2,14.76]
[1745187817956,18.64964886,136.22,136.2,14.76]
[1745187818244,26.0,136.23,136.2,14.76]
[1745187818870,33.34053677,136.23,136.2,14.76]
[1745187819667,18.64964886,136.22,136.2,14.76]
[1745187821170,25.99086579,136.22,136.2,14.76]
[1745187821774,8.05836452,136.21,136.2,14.76]
[1745187821980,18.64964886,136.22,136.2,14.76]
[1745187822147,25.99087827,136.22,136.2,14.76]
[1745187822462,25.99087827,136.22,136.21,15.06]
[1745187823263,34.04924279,136.22,136.21,15.06]
[1745187823881,34.05836452,136.22,136.21,15.06]
[1745187828049,41.39943044,136.22,136.21,15.06]
[1745187828253,34.05836452,136.22,136.21,15.06]
[1745187829278,34.05836452,136.22,136.21,15.13043086]
[1745187831081,43.94,136.27,136.21,15.13043086]
[1745187831381,8.8535,136.28,136.21,15.13043086]
[1745187831382,8.05836452,136.22,136.21,15.13043086]
[1745187841371,8.05836452,136.22,136.21,15.08]
[1745187842984,34.05836452,136.23,136.21,15.08]
[1745187843155,8.05836452,136.22,136.21,15.08]
[1745187843355,26.70801338,136.22,136.21,15.08]
[1745187844466,34.0490793,136.22,136.21,15.08]
[1745187853263,44.64964886,136.19,136.18,14.86]
[1745187853471,52.70801338,136.19,136.18,14.86]
[1745187854489,60.05069639,136.19,136.18,14.86]
[1745187854861,52.70801338,136.19,136.18,14.86]
[1745187855084,34.05836452,136.19,136.18,14.86]
[1745187855276,52.70801338,136.19,136.18,14.86]
[1745187855488,18.64964886,136.18,136.14,0.03]
[1745187855668,8.05836452,136.16,136.14,0.03]
[1745187855868,26.0,136.16,136.15,14.86]
[1745187857063,26.0,136.19,136.15,14.86]
[1745187857263,34.05836452,136.19,136.15,14.86]
[1745187857667,26.0,136.19,136.15,20.9319]
[1745187857865,8.05836452,136.2,136.15,20.9319]
[1745187858286,34.05836452,136.2,136.15,20.9319]
[1745187858461,8.05836452,136.19,136.15,20.9319]
[1745187859378,8.05836452,136.18,136.15,14.86]
[1745187859766,8.05836452,136.19,136.15,14.86]
[1745187861478,8.05836452,136.18,136.15,14.86]
[1745187861687,8.05836452,136.19,136.15,14.86]
[1745187868594,26.0,136.2,136.15,14.86]
[1745187868767,34.05836452,136.2,136.15,14.86]
[1745187869796,8.05836452,136.19,136.15,14.86]
[1745187876201,8.05836452,136.19,136.16,14.86]
[1745187879017,18.64964886,136.19,136.16,14.86]
[1745187879181,8.05836452,136.17,136.16,14.86]
[1745187879386,26.70801338,136.17,136.16,14.86]
[1745187880301,18.64964886,136.16,136.13,14.86]
[1745187880485,8.05836452,136.15,136.13,14.86]
[1745187881108,34.05836452,136.17,136.13,14.86]
[1745187881289,8.05836452,136.15,136.13,14.86]
[1745187881817,8.05836452,136.16,136.13,14.86]
[1745187886195,8.05836452,136.15,136.13,14.86]
[1745187888320,8.05836452,136.16,136.13,14.86]
[1745187889815,26.0,136.17,136.13,14.86]
[1745187890026,34.05836452,136.17,136.13,14.86]
[1745187890320,26.0,136.17,136.13,22.91836452]
[1745187890529,34.05836452,136.17,136.13,14.86]
[1745187890993,26.0,136.17,136.13,22.91836452]
[1745187894027,34.05836452,136.17,136.13,14.86]
[1745187896111,26.0,136.17,136.13,22.91836452]
[1745187896431,34.05836452,136.19,136.13,22.91836452]
[1745187896632,8.05836452,136.18,136.13,22.91836452]
[1745187897429,26.0,136.19,136.13,22.91836452]
[1745187897646,8.05836452,136.18,136.13,22.91836452]
[1745187899613,8.05836452,136.17,136.13,14.86]
[1745187899814,8.05836452,136.18,136.13,22.91836452]
[1745187900547,26.0,136.18,136.14,8.05836452]
[1745187901049,34.05836452,136.18,136.13,22.91836452]
[1745187901409,34.05836452,136.18,136.13,14.86]
[1745187902434,34.05836452,136.18,136.13,22.91836452]
[1745187902936,26.0,136.18,136.14,8.05836452]
[1745187904540,1.5629,136.22,136.15,8.05836452]
[1745187904840,8.05836452,136.19,136.14,8.05836452]
[1745187905336,8.05836452,136.19,136.13,101.6945]
[1745187905523,8.05836452,136.19,136.14,8.05836452]
[1745187906943,8.05836452,136.18,136.13,109.75286452]
[1745187907740,8.05836452,136.18,136.13,101.6945]
[1745187907942,8.05836452,136.18,136.13,109.75286452]
[1745187908739,8.05836452,136.18,136.13,29.36786452]
[1745187909822,8.05836452,136.18,136.13,21.3095]
[1745187911346,8.05836452,136.18,136.13,14.86]
[1745187913951,18.64964886,136.19,136.13,22.91836452]
[1745187914122,26.70801338,136.19,136.13,22.91836452]
[1745187914638,18.64964886,136.19,136.13,22.91836452]
[1745187914842,26.70801338,136.19,136.13,22.91836452]
[1745187915033,8.05836452,136.18,136.13,22.91836452]
[1745187915735,8.05836452,136.17,136.13,14.86]
[1745187917241,8.05836452,136.18,136.13,22.91836452]
[1745187919850,34.05836452,136.19,136.13,22.91836452]
[1745187920347,34.05836452,136.19,136.13,14.86]
[1745187920750,8.05836452,136.18,136.13,22.91836452]
[1745187921245,34.05836452,136.19,136.13,22.91836452]
[1745187921455,34.05836452,136.19,136.14,8.05836452]
[1745187921826,34.05836452,136.19,136.13,22.91836452]
[1745187922557,34.05836452,136.19,136.14,8.05836452]
[1745187924154,34.05836452,136.19,136.15,15.12]
[1745187924347,26.0,136.19,136.15,15.12]
[1745187924950,26.0,136.19,136.15,23.17836452]
[1745187927040,34.05836452,136.19,136.15,15.12]
[1745187933645,34.05836452,136.19,136.16,15.12]
[1745187934358,18.64964886,136.21,136.16,15.12]
[1745187934668,8.05836452,136.2,136.16,15.12]
[1745187935959,8.05836452,136.19,136.16,15.12]
[1745187936661,26.0,136.21,136.16,15.12]
[1745187936841,8.05836452,136.2,136.16,15.12]
[1745187938276,0.063,136.24,136.19,8.05836452]
[1745187938459,0.063,136.24,136.21,8.05836452]
[1745187938645,0.063,136.24,136.22,15.12]
[1745187938959,26.063,136.24,136.22,15.12]
[1745187942069,0.063,136.24,136.22,15.12]
[1745187942363,0.063,136.24,136.23,8.05836452]
[1745187942549,0.063,136.24,136.22,23.17836452]
[1745187942738,0.063,136.24,136.23,8.05836452]
[1745187944362,0.063,136.24,136.22,274.75836452]
[1745187944750,0.063,136.24,136.23,8.05836452]
[1745187950263,0.063,136.24,136.23,88.44336452]
[1745187958376,0.063,136.24,136.23,80.385]
[1745187961068,0.063,136.24,136.22,266.7]
[1745187964376,0.063,136.24,136.22,274.75836452]
[1745187964575,0.063,136.24,136.22,266.7]
[1745187964873,0.063,136.24,136.22,274.75836452]
[1745187965251,0.063,136.24,136.22,266.7]
[1745187965456,0.063,136.24,136.22,274.75836452]
[1745187970385,0.063,136.24,136.23,8.05836452]
[1745187976168,0.063,136.24,136.23,88.44336452]
[1745187980486,0.063,136.24,136.23,80.385]
[1745187980676,0.063,136.24,136.23,88.44336452]
[1745187981190,0.063,136.24,136.23,107.09301338]
[1745187981573,0.063,136.28,136.27,18.64964886]
[1745187981788,0.063,136.28,136.27,121.89001338]
[1745187982185,0.063,136.3,136.27,121.89001338]
[1745187982389,0.063,136.3,136.29,8.05836452]
[1745187983478,0.063,136.3,136.29,107.03001338]
[1745187984281,0.063,136.3,136.29,88.38036452]
[1745187985792,0.063,136.3,136.29,103.24036452]
[1745187985970,0.06299999,136.3,136.29,103.24036452]
[1745187986168,0.063,136.31,136.3,18.64964886]
[1745187986372,0.063,136.31,136.3,107.03001338]
[1745187986580,0.063,136.34,136.3,107.03001338]
[1745187986791,0.063,136.34,136.32,40.2918226]
[1745187986990,0.063,136.34,136.32,8.05836452]
[1745187987973,0.063,136.34,136.32,40.2918226]
[1745187988798,0.063,136.34,136.32,58.94147146]
[1745187988980,0.063,136.34,136.33,259.39836452]
[1745187990507,0.063,136.36,136.33,259.39836452]
[1745187990702,0.063,136.36,136.35,8.05836452]
[1745187990885,0.063,136.36,136.35,103.24036452]
[1745187992809,0.063,136.36,136.35,88.38036452]
[1745187993106,0.063,136.36,136.35,103.24036452]
[1745187993307,0.063,136.36,136.35,88.38036452]
[1745187993487,0.063,136.36,136.35,103.24036452]
[1745187994909,0.063,136.36,136.35,121.89001338]
[1745188000307,0.063,136.38,136.36,18.64964886]
[1745188000617,0.063,136.39,136.38,18.64964886]
[1745188000910,0.063,136.39,136.38,107.03001338]
[1745188002112,0.063,136.39,136.38,133.03001338]
[1745188003211,0.063,136.39,136.38,114.38036452]
[1745188003414,0.063,136.39,136.38,129.24036452]
[1745188004412,0.063,136.39,136.38,147.89001338]
[1745188005513,0.063,136.39,136.38,380.42036452]
[1745188006889,0.063,136.43,136.38,399.07001338]
[1745188007093,0.063,136.43,136.42,8.05836452]
[1745188009018,0.063,136.43,136.4,8.05836452]
[1745188009398,0.063,136.43,136.41,8.05836452]
[1745188009598,0.063,136.43,136.42,8.05836452]
[1745188010409,0.063,136.43,136.42,23.07836452]
[1745188012307,0.063,136.45,136.44,26.0]
[1745188012506,0.063,136.45,136.44,34.05836452]
[1745188013711,0.063,136.45,136.44,49.07836452]
[1745188014617,0.063,136.45,136.42,80.322]
[1745188014820,0.063,136.45,136.43,266.14]
[1745188015004,0.063,136.45,136.43,274.19836452]
[1745188015517,0.063,136.45,136.43,266.14]
[1745188017418,1.5852,136.45,136.41,8.05836452]
[1745188017624,1.5852,136.45,136.41,88.38036452]
[1745188017801,1.5852,136.45,136.42,266.1]
[1745188018624,1.5852,136.45,136.41,88.38036452]
[1745188018826,1.5852,136.45,136.43,15.02]
[1745188020020,1.5852,136.45,136.44,15.02]
[1745188023337,9.64356452,136.45,136.44,15.02]
[1745188024024,9.64356452,136.45,136.38,80.322]
[1745188024231,8.05836452,136.42,136.39,15.02]
[1745188024611,8.05836452,136.43,136.39,15.02]
[1745188028435,14.06046452,136.44,136.39,15.02]
[1745188028609,9.64356452,136.45,136.4,8.05836452]
[1745188028813,1.5852,136.45,136.42,8.05836452]
[1745188029034,0.063,136.45,136.42,8.05836452]
[1745188030643,0.063,136.45,136.41,8.05836452]
[1745188031534,0.063,136.45,136.42,15.02]
[1745188031947,8.12136452,136.45,136.42,15.02]
[1745188037043,9.67416452,136.43,136.41,251.1]
[1745188037249,1.6158,136.43,136.42,15.02]
[1745188038042,26.063,136.45,136.42,15.02]
[1745188040157,34.12136452,136.45,136.42,15.02]
[1745188041650,26.063,136.45,136.42,15.02]
[1745188043853,34.12136452,136.45,136.42,15.02]
[1745188046165,0.063,136.45,136.42,23.07836452]
[1745188047041,0.063,136.45,136.42,15.02]
[1745188047340,0.063,136.45,136.42,23.07836452]
[1745188047737,0.063,136.45,136.43,8.05836452]
[1745188048052,0.063,136.45,136.44,8.05836452]
[1745188050839,0.063,136.45,136.44,22.95836452]
[1745188052563,0.063,136.45,136.44,103.28036452]
[1745188055267,0.063,136.45,136.44,121.93001338]